fUST/lending_fUST_20250908
["ID","MTS","AMOUNT","RATE_DAILY","PERIOD"]
[384303471,1757327450404,-151.0,0.00014523,2]
[384303472,1757327450414,-151.0,0.00014523,2]
[384303473,1757327450423,-250.0,0.00014523,2]
[384303474,1757327450433,-151.0,0.00014523,2]
[384303475,1757327450442,-151.0,0.00014523,2]
[384303476,1757327450451,-250.0,0.00014523,2]
[384303477,1757327450461,-151.0,0.00014523,2]
[384303478,1757327450470,-250.0,0.00014523,2]
[384303480,1757327450479,-151.0,0.00014523,2]
[384303481,1757327450488,-303.3926338,0.00014523,2]
[384303483,1757327450497,-151.0,0.00014523,2]
[384303484,1757327450507,-151.0,0.00014523,2]
[384303485,1757327450516,-151.0,0.00014523,2]
[384303487,1757327450525,-151.0,0.00014523,2]
[384303488,1757327450534,-151.0,0.00014523,2]
[384303490,1757327450543,-151.0,0.00014523,2]
[384303491,1757327450553,-151.0,0.00014523,2]
[384303493,1757327450562,-151.0,0.00014523,2]
[384303494,1757327450571,-2030.296672,0.00014523,2]
[384303495,1757327450581,-151.0,0.00014523,2]
[384303496,1757327450590,-202.50353211,0.00014523,2]
[384303497,1757327450599,-151.0,0.00014523,2]
[384303498,1757327450608,-151.0,0.00014523,2]
[384303499,1757327450617,-151.0,0.00014523,2]
[384303500,1757327450627,-151.0,0.00014523,2]
[384303501,1757327450636,-151.0,0.00014523,2]
[384303502,1757327450645,-151.0,0.00014523,2]
[384303503,1757327450654,-151.0,0.00014523,2]
[384303504,1757327450663,-151.0,0.00014523,2]
[384303505,1757327450673,-151.0,0.00014523,2]
[384303506,1757327450682,-5312.5232405,0.00014525,2]
[384303507,1757327450692,-327.0,0.00014529,2]
[384303508,1757327450701,-327.0,0.00014529,2]
[384303509,1757327450711,-327.0,0.00014529,2]
[384303510,1757327450720,-327.0,0.00014529,2]
[384303511,1757327450730,-320.64690907,0.00014529,2]
[384303512,1757327450739,-327.0,0.00014529,2]
[384303513,1757327450748,-327.0,0.00014529,2]
[384303514,1757327450758,-2105.41764886,0.00014578,2]
[384303515,1757327450767,-312.42568161,0.000146,2]
[384303516,1757327450776,-2183.31810187,0.00014633,2]
[384303517,1757327450786,-2264.10087164,0.00014688,2]
[384303518,1757327450796,-317.57593188,0.00014743,2]
[384303519,1757327450805,-1500.0,0.00014768,2]
[384303520,1757327450814,-288.94226069,0.00014768,2]
[384303521,1757327450823,-1500.0,0.00014768,2]
[384303522,1757327450833,-500.0,0.00014794,2]
[384303523,1757327450843,-920.2,0.00014794,2]
[384303524,1757327450856,-480.0,0.00014794,2]
[384303525,1757327450866,-1042.42,0.00014794,2]
[384303526,1757327450877,-578.54,0.00014794,2]
[384303527,1757327450886,-785.35,0.00014794,2]
[384303528,1757327450896,-480.0,0.00014794,2]
[384303529,1757327450906,-619.46,0.00014794,2]
[384303530,1757327450916,-542.97,0.00014794,2]
[384303531,1757327450926,-1928.51,0.00014794,2]
[384303532,1757327450938,-480.0,0.00014794,2]
[384303533,1757327450948,-646.9,0.00014794,2]
[384303534,1757327450957,-480.0,0.00014794,2]
[384303535,1757327450967,-2110.27,0.00014794,2]
[384303536,1757327450976,-480.0,0.00014794,2]
[384303537,1757327450985,-1215.53,0.00014794,2]
[384303538,1757327450995,-753.63,0.00014794,2]
[384303539,1757327451005,-167.44,0.00014794,2]
[384303540,1757327451014,-480.0,0.00014794,2]
[384303541,1757327451024,-480.0,0.00014794,2]
[384303542,1757327451034,-480.0,0.00014794,2]
[384303543,1757327451043,-549.9,0.00014794,2]
[384303544,1757327451052,-480.0,0.00014794,2]
[384303545,1757327451062,-480.0,0.00014794,2]
[384303546,1757327451071,-558.24,0.00014794,2]
[384303547,1757327451080,-480.0,0.00014794,2]
[384303548,1757327451090,-480.0,0.00014794,2]
[384303549,1757327451099,-480.0,0.00014794,2]
[384303550,1757327451108,-480.0,0.00014794,2]
[384303551,1757327451118,-1014.74,0.00014794,2]
[384303552,1757327451128,-280.66139527,0.0001482,2]
[384303553,1757327451137,-720.0,0.00014889,2]
[384303554,1757327451146,-393.51274596,0.0001496,2]
[384303555,1757327451156,-160.0,0.00015,2]
[384303556,1757327451166,-263.35646569,0.00015064,2]
[384303557,1757327451175,-500.0,0.00015068,2]
[384303558,1757327451184,-203.3243414,0.00015068,2]
[384303559,1757327451194,-205.01202403,0.00015068,2]
[384303560,1757327451203,-151.0,0.00015068,2]
[384303561,1757327451212,-920.2,0.00015068,2]
[384303562,1757327451222,-480.0,0.00015068,2]
[384303563,1757327451231,-1042.42,0.00015068,2]
[384303564,1757327451240,-578.54,0.00015068,2]
[384303565,1757327451250,-785.35,0.00015068,2]
[384303566,1757327451259,-358.39046779,0.00015068,2]
[384303567,1757327451269,-619.46,0.00015068,2]
[384303568,1757327451278,-542.97,0.00015068,2]
[384303569,1757327451287,-1928.51,0.00015068,2]
[384303570,1757327451297,-480.0,0.00015068,2]
[384303571,1757327451307,-646.9,0.00015068,2]
[384303572,1757327451317,-480.0,0.00015068,2]
[384303573,1757327451326,-2110.27,0.00015068,2]
[384303574,1757327451336,-480.0,0.00015068,2]
[384303575,1757327451345,-1215.53,0.00015068,2]
[384303576,1757327451355,-753.63,0.00015068,2]
[384303577,1757327451364,-480.0,0.00015068,2]
[384303578,1757327451374,-480.0,0.00015068,2]
[384303579,1757327451383,-480.0,0.00015068,2]
[384303580,1757327451393,-549.9,0.00015068,2]
[384303581,1757327451402,-480.0,0.00015068,2]
[384303582,1757327451411,-352.7,0.00015068,2]
[384303583,1757327451420,-1014.74,0.00015068,2]
[384303584,1757327451430,-557.335554,0.00015068,2]
[384303585,1757327451439,-688.3436969,0.00015071,2]
[384303586,1757327451449,-151.0,0.000152,2]
[384303587,1757327451459,-409.0,0.00015275,2]
[384303588,1757327451469,-275.74949244,0.00015288,2]
[384303589,1757327451478,-1304.0,0.00015288,2]
[384303590,1757327451488,-320.21042644,0.00015288,2]
[384303591,1757327451497,-2000.0,0.00015316,2]
[384303592,1757327451507,-2000.0,0.00015316,2]
[384303593,1757327451516,-151.0,0.00015333,2]
[384303594,1757327451526,-500.0,0.00015342,2]
[384303595,1757327451535,-920.2,0.00015342,2]
[384303596,1757327451545,-480.0,0.00015342,2]
[384303597,1757327451554,-1042.42,0.00015342,2]
[384303598,1757327451564,-578.54,0.00015342,2]
[384303599,1757327451573,-785.35,0.00015342,2]
[384303600,1757327451583,-619.46,0.00015342,2]
[384303601,1757327451683,-542.97,0.00015342,2]
[384303602,1757327451692,-1928.51,0.00015342,2]
[384303603,1757327451702,-480.0,0.00015342,2]
[384303604,1757327451712,-646.9,0.00015342,2]
[384303605,1757327451721,-480.0,0.00015342,2]
[384303606,1757327451730,-2110.27,0.00015342,2]
[384303607,1757327451741,-480.0,0.00015342,2]
[384303608,1757327451750,-1215.53,0.00015342,2]
[384303609,1757327451759,-753.63,0.00015342,2]
[384303610,1757327451769,-480.0,0.00015342,2]
[384303611,1757327451778,-480.0,0.00015342,2]
[384303612,1757327451787,-480.0,0.00015342,2]
[384303613,1757327451797,-549.9,0.00015342,2]
[384303614,1757327451806,-151.0,0.00015342,2]
[384303615,1757327451816,-480.0,0.00015342,2]
[384303616,1757327451825,-1014.74,0.00015342,2]
[384303617,1757327451835,-500.0,0.00015454,2]
[384303618,1757327451845,-500.0,0.00015454,2]
[384303619,1757327451858,-500.0,0.00015454,2]
[384303620,1757327451869,-441.7828756,0.0001553,2]
[384303621,1757327451879,-500.0,0.00015616,2]
[384303622,1757327451888,-920.2,0.00015616,2]
[384303623,1757327451897,-480.0,0.00015616,2]
[384303624,1757327451907,-1042.42,0.00015616,2]
[384303625,1757327451916,-578.54,0.00015616,2]
[384303626,1757327451926,-785.35,0.00015616,2]
[384303627,1757327451935,-619.46,0.00015616,2]
[384303628,1757327451946,-542.97,0.00015616,2]
[384303629,1757327451955,-1135.72786603,0.00015616,2]
[384303630,1757327451969,-792.78213397,0.00015616,2]
[384303631,1757327451979,-480.0,0.00015616,2]
[384303632,1757327451989,-646.9,0.00015616,2]
[384303633,1757327451998,-421.10658046,0.00015616,2]
[384303634,1757327453914,-434.17603552,0.00013698,2]
[384303635,1757327453923,-480.0,0.00013698,2]
[384303636,1757327453935,-480.0,0.00013698,2]
[384303637,1757327453945,-480.0,0.00013972,2]
[384303638,1757327453955,-267.4420096,0.00013972,2]
[384303639,1757327454128,-480.0,0.00013698,2]
[384303640,1757327454138,-99.41204265,0.00013698,2]
[384303641,1757327454150,-380.58795735,0.00013698,2]
[384303642,1757327454160,-212.5579904,0.00013972,2]
[384303643,1757327454170,-480.0,0.00013972,2]
[384303644,1757327454180,-480.0,0.00013972,2]
[384303645,1757327454190,-480.0,0.00014246,2]
[384303646,1757327454200,-480.0,0.00014246,2]
[384303647,1757327454209,-480.0,0.00014246,2]
[384303648,1757327454219,-480.0,0.00014246,2]
[384303649,1757327454229,-480.0,0.0001452,2]
[384303650,1757327454238,-58.89341954,0.00015616,2]
[384303651,1757327454248,-2110.27,0.00015616,2]
[384303652,1757327454257,-480.0,0.00015616,2]
[384303653,1757327454266,-1215.53,0.00015616,2]
[384303654,1757327454276,-753.63,0.00015616,2]
[384303655,1757327454285,-480.0,0.00015616,2]
[384303656,1757327454294,-480.0,0.00015616,2]
[384303657,1757327454303,-566.13730526,0.00015616,2]
[384303658,1757327454313,-549.9,0.00015616,2]
[384303659,1757327454322,-480.0,0.00015616,2]
[384303660,1757327454331,-1014.74,0.00015616,2]
[384303661,1757327454341,-500.0,0.000158,2]
[384303662,1757327454351,-500.0,0.000158,2]
[384303663,1757327454360,-500.0,0.00015806,2]
[384303664,1757327454369,-397.88056383,0.00015806,2]
[384303665,1757327454379,-500.0,0.00015806,2]
[384303666,1757327454388,-2500.0,0.00015864,2]
[384303667,1757327454398,-2500.0,0.00015864,2]
[384303668,1757327454407,-500.0,0.0001589,2]
[384303669,1757327454417,-920.2,0.0001589,2]
[384303670,1757327454427,-480.0,0.0001589,2]
[384303671,1757327454437,-578.54,0.0001589,2]
[384303672,1757327454447,-785.35,0.0001589,2]
[384303673,1757327454457,-619.46,0.0001589,2]
[384303674,1757327454467,-542.97,0.0001589,2]
[384303675,1757327454477,-1928.51,0.0001589,2]
[384303676,1757327454486,-480.0,0.0001589,2]
[384303677,1757327454495,-646.9,0.0001589,2]
[384303678,1757327454504,-480.0,0.0001589,2]
[384303679,1757327454513,-2110.27,0.0001589,2]
[384303680,1757327454523,-480.0,0.0001589,2]
[384303681,1757327454532,-1215.53,0.0001589,2]
[384303682,1757327454542,-753.63,0.0001589,2]
[384303683,1757327454551,-480.0,0.0001589,2]
[384303684,1757327454561,-480.0,0.0001589,2]
[384303685,1757327454570,-549.9,0.0001589,2]
[384303686,1757327454580,-480.0,0.0001589,2]
[384303687,1757327454590,-1014.74,0.0001589,2]
[384303688,1757327454599,-151.0,0.000159,2]
[384303689,1757327454610,-160.0,0.00015909,2]
[384303690,1757327454619,-3000.0,0.00016,2]
[384303691,1757327454630,-1000.0,0.00016002,2]
[384303692,1757327454640,-1000.0,0.00016002,2]
[384303693,1757327454650,-1000.0,0.00016002,2]
[384303694,1757327454659,-151.0,0.00016002,2]
[384303695,1757327454669,-3000.0,0.0001601,2]
[384303696,1757327454679,-5614.485837,0.0001602,2]
[384303697,1757327454689,-500.0,0.00016164,2]
[384303698,1757327454699,-274.1272978,0.00016164,2]
[384303699,1757327454709,-1095.412682,0.00016164,2]
[384303700,1757327454719,-920.2,0.00016164,2]
[384303701,1757327454728,-480.0,0.00016164,2]
[384303702,1757327454738,-578.54,0.00016164,2]
[384303703,1757327454747,-151.0,0.00016164,2]
[384303704,1757327454757,-785.35,0.00016164,2]
[384303705,1757327454767,-619.46,0.00016164,2]
[384303706,1757327454776,-542.97,0.00016164,2]
[384303707,1757327454785,-1928.51,0.00016164,2]
[384303708,1757327454796,-480.0,0.00016164,2]
[384303709,1757327454807,-646.9,0.00016164,2]
[384303710,1757327454816,-282.25888845,0.00016164,2]
[384303711,1757327454825,-2110.27,0.00016164,2]
[384303712,1757327454835,-480.0,0.00016164,2]
[384303713,1757327454844,-1215.53,0.00016164,2]
[384303714,1757327454857,-753.63,0.00016164,2]
[384303715,1757327454866,-480.0,0.00016164,2]
[384303716,1757327454876,-480.0,0.00016164,2]
[384303717,1757327454885,-549.9,0.00016164,2]
[384303718,1757327454895,-480.0,0.00016164,2]
[384303719,1757327454907,-1014.74,0.00016164,2]
[384303720,1757327454917,-173.58276563,0.00016348,2]
[384303721,1757327454926,-1000.0,0.00016348,2]
[384303722,1757327454939,-1000.0,0.00016354,2]
[384303723,1757327454949,-1000.0,0.00016354,2]
[384303724,1757327454958,-1185.3841614,0.00016369,2]
[384303725,1757327454968,-864.0,0.00016378,2]
[384303726,1757327454978,-429.02672657,0.00016386,2]
[384303727,1757327454987,-3000.0,0.00016412,2]
[384303728,1757327454997,-3000.0,0.00016412,2]
[384303729,1757327455007,-500.0,0.00016438,2]
[384303730,1757327455016,-500.0,0.00016438,2]
[384303731,1757327455026,-687.1,0.00016438,2]
[384303732,1757327455036,-920.2,0.00016438,2]
[384303733,1757327455045,-480.0,0.00016438,2]
[384303734,1757327455054,-578.54,0.00016438,2]
[384303735,1757327455064,-785.35,0.00016438,2]
[384303736,1757327455074,-619.46,0.00016438,2]
[384303737,1757327455084,-542.97,0.00016438,2]
[384303738,1757327455093,-1928.51,0.00016438,2]
[384303739,1757327455102,-480.0,0.00016438,2]
[384303740,1757327455111,-646.9,0.00016438,2]
[384303741,1757327455208,-2110.27,0.00016438,2]
[384303742,1757327455218,-209.91702314,0.00016438,2]
[384303743,1757327455227,-1215.53,0.00016438,2]
[384303744,1757327455237,-753.63,0.00016438,2]
[384303745,1757327455246,-365.04,0.00016438,2]
[384303746,1757327455255,-480.0,0.00016438,2]
[384303747,1757327455265,-549.9,0.00016438,2]
[384303748,1757327455274,-480.0,0.00016438,2]
[384303749,1757327455284,-1014.74,0.00016438,2]
[384303750,1757327455294,-260.0,0.00016457,2]
[384303751,1757327455303,-1500.0,0.0001655,2]
[384303752,1757327455312,-1518.44405499,0.0001655,2]
[384303753,1757327455322,-1500.0,0.0001655,2]
[384303754,1757327455331,-648.99797948,0.000166,2]
[384303755,1757327455342,-151.0,0.000166,2]
[384303756,1757327455351,-500.0,0.00016644,2]
[384303757,1757327455363,-500.0,0.00016644,2]
[384303758,1757327455372,-500.0,0.00016644,2]
[384303759,1757327455382,-500.0,0.00016644,2]
[384303760,1757327455391,-500.0,0.00016685,2]
[384303761,1757327455401,-500.0,0.00016685,2]
[384303762,1757327455410,-258.44572637,0.00016685,2]
[384303763,1757327455421,-500.0,0.00016685,2]
[384303764,1757327455430,-158.02795954,0.00016685,2]
[384303765,1757327455443,-166.92253323,0.00016685,2]
[384303766,1757327455454,-500.0,0.00016685,2]
[384303767,1757327455463,-500.0,0.00016685,2]
[384303768,1757327455473,-160.02831354,0.00016685,2]
[384303769,1757327455484,-500.0,0.00016686,2]
[384303770,1757327455493,-500.0,0.00016686,2]
[384303771,1757327455503,-500.41245655,0.00016686,2]
[384303772,1757327455514,-500.0,0.00016686,2]
[384303773,1757327455531,-500.0,0.00016693,2]
[384303774,1757327455542,-258.44392034,0.00016693,2]
[384303775,1757327455556,-160.02831345,0.00016693,2]
[384303776,1757327455565,-500.0,0.00016693,2]
[384303777,1757327455574,-500.0,0.00016693,2]
[384303778,1757327455584,-500.0,0.00016693,2]
[384303779,1757327455593,-500.0,0.00016693,2]
[384303780,1757327455603,-500.0,0.00016693,2]
[384303781,1757327455612,-158.02795954,0.00016693,2]
[384303782,1757327455624,-500.0,0.00016693,2]
[384303783,1757327455642,-500.0,0.00016693,2]
[384303784,1757327455652,-500.0,0.00016693,2]
[384303785,1757327455662,-236.17678287,0.00016693,2]
[384303786,1757327455672,-500.0,0.00016693,2]
[384303787,1757327455682,-500.0,0.00016693,2]
[384303788,1757327455692,-500.0,0.00016693,2]
[384303789,1757327455702,-500.0,0.00016693,2]
[384303790,1757327455711,-500.0,0.00016693,2]
[384303791,1757327455721,-500.0,0.00016693,2]
[384303792,1757327455730,-500.0,0.00016693,2]
[384303793,1757327455740,-160.02831353,0.00016693,2]
[384303794,1757327455749,-500.0,0.00016693,2]
[384303795,1757327455759,-157.02778258,0.00016693,2]
[384303796,1757327455768,-500.0,0.00016693,2]
[384303797,1757327455777,-158.0,0.00016693,2]
[384303798,1757327455787,-158.02795954,0.00016693,2]
[384303799,1757327455797,-500.0,0.00016693,2]
[384303800,1757327455807,-520.87006892,0.00016693,2]
[384303801,1757327455817,-500.0,0.00016693,2]
[384303802,1757327455827,-567.36173543,0.00016693,2]
[384303803,1757327455836,-500.0,0.00016693,2]
[384303804,1757327455846,-500.0,0.00016693,2]
[384303805,1757327455856,-428.04933009,0.00016693,2]
[384303806,1757327455869,-500.0,0.00016693,2]
[384303807,1757327455879,-500.0,0.00016693,2]
[384303808,1757327455889,-500.0,0.00016693,2]
[384303809,1757327455898,-500.0,0.00016693,2]
[384303810,1757327455909,-500.0,0.00016693,2]
[384303811,1757327455919,-500.0,0.00016693,2]
[384303812,1757327455928,-500.0,0.00016693,2]
[384303813,1757327455938,-155.81621023,0.00016693,2]
[384303814,1757327455949,-500.0,0.00016693,2]
[384303815,1757327455959,-500.0,0.00016693,2]
[384303816,1757327455968,-500.0,0.00016693,2]
[384303817,1757327455978,-500.0,0.00016693,2]
[384303818,1757327455987,-500.0,0.00016693,2]
[384303819,1757327455997,-500.0,0.00016693,2]
[384303820,1757327456011,-500.0,0.00016693,2]
[384303821,1757327456028,-500.0,0.00016693,2]
[384303822,1757327456044,-500.0,0.00016712,2]
[384303823,1757327456059,-500.0,0.00016712,2]
[384303824,1757327456074,-687.1,0.00016712,2]
[384303825,1757327456091,-920.2,0.00016712,2]
[384303826,1757327456107,-480.0,0.00016712,2]
[384303827,1757327456125,-578.54,0.00016712,2]
[384303828,1757327456140,-785.35,0.00016712,2]
[384303829,1757327456154,-619.46,0.00016712,2]
[384303830,1757327456170,-542.97,0.00016712,2]
[384303831,1757327456185,-1928.51,0.00016712,2]
[384303832,1757327456199,-480.0,0.00016712,2]
[384303833,1757327456212,-646.9,0.00016712,2]
[384303834,1757327456225,-2110.27,0.00016712,2]
[384303835,1757327456242,-1215.53,0.00016712,2]
[384303836,1757327456256,-753.63,0.00016712,2]
[384303837,1757327456272,-347.12565862,0.00016712,2]
[384303838,1757327456289,-549.9,0.00016712,2]
[384303839,1757327456301,-480.0,0.00016712,2]
[384303840,1757327456312,-1014.74,0.00016712,2]
[384303841,1757327456328,-264.4949577,0.00016781,2]
[384303842,1757327456344,-177.39038626,0.000168,3]
[384303843,1757327456357,-1500.0,0.00016896,2]
[384303844,1757327456372,-816.20134462,0.00016902,2]
[384303845,1757327456387,-970.59219338,0.00016902,2]
[384303846,1757327456404,-529.40780662,0.00016902,2]
[384303847,1757327456417,-264.0,0.00016912,2]
[384303848,1757327456430,-3599.96019675,0.0001696,2]
[384303849,1757327456443,-3500.0,0.0001696,2]
[384303850,1757327456456,-500.0,0.00016986,2]
[384303851,1757327456470,-323.54517969,0.00016986,2]
[384303852,1757327456482,-687.1,0.00016986,2]
[384303853,1757327456496,-920.2,0.00016986,2]
[384303854,1757327456510,-480.0,0.00016986,2]
[384303855,1757327456523,-578.54,0.00016986,2]
[384303856,1757327456536,-785.35,0.00016986,2]
[384303857,1757327456549,-619.46,0.00016986,2]
[384303858,1757327456563,-542.97,0.00016986,2]
[384303859,1757327456577,-1928.51,0.00016986,2]
[384303860,1757327456590,-480.0,0.00016986,2]
[384303861,1757327456603,-646.9,0.00016986,2]
[384303862,1757327456616,-2110.27,0.00016986,2]
[384303863,1757327456631,-1215.53,0.00016986,2]
[384303864,1757327456644,-753.63,0.00016986,2]
[384303865,1757327456655,-549.9,0.00016986,2]
[384303866,1757327456665,-480.0,0.00016986,2]
[384303867,1757327456675,-1014.74,0.00016986,2]
[384303868,1757327456684,-4750.7528091,0.00017,2]
[384303869,1757327456694,-360.0,0.00017005,2]
[384303870,1757327456704,-168.0,0.00017041,2]
[384303871,1757327456714,-312.0,0.00017097,2]
[384303872,1757327456726,-2000.0,0.00017098,2]
[384303873,1757327456735,-2000.0,0.00017098,2]
[384303874,1757327456744,-168.0,0.0001714,2]
[384303875,1757327456754,-1000.0,0.00017192,2]
[384303876,1757327456763,-1000.0,0.00017192,2]
[384303877,1757327456773,-1000.0,0.00017192,2]
[384303878,1757327456782,-567.92191195,0.00017192,2]
[384303879,1757327456792,-168.0,0.000172,2]
[384303880,1757327456801,-1000.0,0.00017233,2]
[384303881,1757327456810,-1000.0,0.00017233,2]
[384303882,1757327456819,-1000.0,0.00017233,2]
[384303883,1757327456829,-1000.0,0.00017233,2]
[384303884,1757327456839,-1000.0,0.00017233,2]
[384303885,1757327456848,-1000.0,0.00017234,2]
[384303886,1757327456858,-1000.0,0.00017234,2]
[384303887,1757327456872,-1000.0,0.00017234,2]
[384303888,1757327456883,-1000.0,0.00017241,2]
[384303889,1757327456893,-1000.0,0.00017241,2]
[384303890,1757327456902,-1000.0,0.00017241,2]
[384303891,1757327456914,-1118.00555303,0.00017241,2]
[384303892,1757327456924,-405.30180717,0.00017241,2]
[384303893,1757327456934,-1000.0,0.00017241,2]
[384303894,1757327456945,-165.20144544,0.00017241,2]
[384303895,1757327456955,-1000.0,0.00017241,2]
[384303896,1757327456965,-1000.0,0.00017241,2]
[384303897,1757327457176,-1000.0,0.00017241,2]
[384303898,1757327457189,-1000.0,0.00017241,2]
[384303899,1757327457199,-1000.0,0.00017241,2]
[384303900,1757327457210,-706.4813585,0.00017241,2]
[384303901,1757327457220,-1000.0,0.00017241,2]
[384303902,1757327457230,-1000.0,0.00017241,2]
[384303903,1757327457240,-1000.0,0.00017241,2]
[384303904,1757327457250,-1000.0,0.00017241,2]
[384303905,1757327457259,-1000.0,0.00017241,2]
[384303906,1757327457269,-1000.0,0.00017241,2]
[384303907,1757327457279,-1000.0,0.00017241,2]
[384303908,1757327457289,-1000.0,0.00017241,2]
[384303909,1757327457299,-1000.0,0.00017241,2]
[384303910,1757327457309,-1000.0,0.00017241,2]
[384303911,1757327457318,-1000.0,0.00017241,2]
[384303912,1757327457328,-1000.0,0.00017241,2]
[384303913,1757327457338,-1000.0,0.00017241,2]
[384303914,1757327457347,-1000.0,0.00017241,2]
[384303915,1757327457357,-1000.0,0.00017241,2]
[384303916,1757327457367,-1000.0,0.00017241,2]
[384303917,1757327457376,-1000.0,0.00017241,2]
[384303918,1757327457385,-1000.0,0.00017241,2]
[384303919,1757327457395,-1000.0,0.00017241,2]
[384303920,1757327457403,-971.64824177,0.00017241,2]
[384303921,1757327457414,-662.96789185,0.00017241,2]
[384303922,1757327457424,-1000.0,0.00017241,2]
[384303923,1757327457433,-170.75065397,0.00017241,2]
[384303924,1757327457444,-1000.0,0.00017241,2]
[384303925,1757327457453,-151.0,0.00017245,2]
[384303926,1757327457463,-588.85770038,0.00017245,2]
[384303927,1757327457472,-500.0,0.00017245,2]
[384303928,1757327457481,-500.0,0.00017245,2]
[384303929,1757327457491,-500.0,0.0001726,2]
[384303930,1757327457499,-151.0,0.0001726,2]
[384303931,1757327457508,-687.1,0.0001726,2]
[384303932,1757327457518,-920.2,0.0001726,2]
[384303933,1757327457527,-480.0,0.0001726,2]
[384303934,1757327457536,-578.54,0.0001726,2]
[384303935,1757327457546,-785.35,0.0001726,2]
[384303936,1757327457555,-619.46,0.0001726,2]
[384303937,1757327457565,-542.97,0.0001726,2]
[384303938,1757327457574,-1928.51,0.0001726,2]
[384303939,1757327457583,-480.0,0.0001726,2]
[384303940,1757327457592,-646.9,0.0001726,2]
[384303941,1757327457602,-2110.27,0.0001726,2]
[384303942,1757327457611,-1215.53,0.0001726,2]
[384303943,1757327457621,-753.63,0.0001726,2]
[384303944,1757327457631,-549.9,0.0001726,2]
[384303945,1757327457640,-480.0,0.0001726,2]
[384303946,1757327457649,-1014.74,0.0001726,2]
[384303947,1757327457659,-213.389812,0.00017283,2]
[384303948,1757327457669,-378.0,0.00017295,2]
[384303949,1757327457679,-151.0,0.000173,2]
[384303950,1757327457688,-2000.0,0.00017444,2]
[384303951,1757327457697,-2000.0,0.0001745,2]
[384303952,1757327457707,-4000.0,0.00017508,2]
[384303953,1757327457716,-500.0,0.00017534,2]
[384303954,1757327457725,-687.1,0.00017534,2]
[384303955,1757327457734,-920.2,0.00017534,2]
[384303956,1757327457743,-480.0,0.00017534,2]
[384303957,1757327457753,-578.54,0.00017534,2]
[384303958,1757327457763,-785.35,0.00017534,2]
[384303959,1757327457772,-619.46,0.00017534,2]
[384303960,1757327457781,-542.97,0.00017534,2]
[384303961,1757327457791,-1928.51,0.00017534,2]
[384303962,1757327457800,-480.0,0.00017534,2]
[384303963,1757327457808,-646.9,0.00017534,2]
[384303964,1757327457818,-2110.27,0.00017534,2]
[384303965,1757327457827,-1215.53,0.00017534,2]
[384303966,1757327457837,-753.63,0.00017534,2]
[384303967,1757327457846,-549.9,0.00017534,2]
[384303968,1757327457855,-480.0,0.00017534,2]
[384303969,1757327457869,-1014.74,0.00017534,2]
[384303970,1757327457879,-460.0,0.00017553,2]
[384303971,1757327457887,-2099.86183959,0.000176,2]
[384303972,1757327457896,-2414.90376157,0.00017646,2]
[384303973,1757327457907,-2500.0,0.00017646,2]
[384303974,1757327457916,-441.7828756,0.00017723,2]
[384303975,1757327457926,-1500.0,0.0001774,2]